Cogmind - Beta 10.2 @@@ ROGUE MODE // 2021.01.05 @ 08:11:33 Player: Wyvric Result: Destroyed by G-47 Trooper with Particle Gun Performance ------------- Evolutions (1) 500 Regions Visited (6) 1200 Robots Destroyed (59) 295 Value Destroyed (1585) 1585 Prototype IDs (1) 20 Alien Tech Used (0) 0 Bonus (-66) -66 TOTAL SCORE: 3534 Bonus ------- Follower Combat Kills 107 Friendly Fire -173 Cogmind --------- Core Integrity 0/400 Matter 280/300 Energy 160/160 System Corruption 7% Temperature Cool (26) Movement Treading (200) Ox2 Location -8/Mines Parts ------- > --- POWER (1) -------- Light Nuclear Core > --- PROPULSION (2) --- Light Treads Light Treads > --- UTILITY (4) ------ Humpback Core Shielding Hardened Light Armor Plating > --- WEAPON (2) ------- Autogun Mini Grenade Launcher > --- INVENTORY (24) --- Light Treads Light Treads Large Storage Unit Large Storage Unit High-capacity Storage Unit Humpback Humpback High-capacity Matter Pod (200) Makeshift Sensor Array Experimental Sensor Array Makeshift Terrain Scanner Light Armor Plating Hardened Light Armor Plating Hardened Light Armor Plating Makeshift System Shield Makeshift System Restoration Module Decoy Drone Bay Heavy Assault Rifle Mini Grenade Launcher Makeshift Sword Makeshift Sword Peak State ------------ > --- POWER ------------ Light Nuclear Core > --- PROPULSION ------- Light Treads Light Treads > --- UTILITY ---------- Medium Storage Unit Humpback Experimental Sensor Array > --- WEAPON ----------- Heavy Assault Rifle Heavy Assault Rifle > --- INVENTORY -------- Improved Ion Engine Improved Ion Engine Light Treads Light Treads Medium Storage Unit Large Storage Unit Large Storage Unit High-capacity Storage Unit Humpback Humpback High-capacity Matter Pod Makeshift Sensor Array Makeshift Terrain Scanner Light Armor Plating Hardened Light Armor Plating Hardened Light Armor Plating Hardened Light Armor Plating Makeshift System Shield Makeshift System Restoration Module Decoy Drone Bay Autogun Mini Grenade Launcher Mini Grenade Launcher Makeshift Sword Makeshift Sword [Rating: 24] Favorites ----------- Power Improved Ion Engine Engine Improved Ion Engine Power Core Light Nuclear Core Propulsion Light Treads Treads Light Treads Leg Aluminum Leg Utility Medium Storage Unit Device Cooling System Storage Medium Storage Unit Processor Improved Signal Interpreter Protection Hardened Light Armor Plating Weapon Heavy Assault Rifle Energy Gun Small Laser Ballistic Gun Heavy Assault Rifle Launcher Mini Grenade Launcher Special Weapon Mining Laser Slashing Weapon Katana Build | -11 -10 -10 -9 -9 -9 -8 ------- Run | Scr Mat Min Mat Min Exi Min Slots Evolved 2 | . . . 2 . . . Power . | . . . . . . . Propulsion . | . . . . . . . Utility 2 | . . . 2 . . . Weapon . | . . . . . . . Parts Attached 73 | 7 . 10 31 7 8 10 Power 7 | 1 . 1 3 1 . 1 Engine 6 | 1 . 1 3 1 . . Core 1 | . . . . . . 1 Reactor . | . . . . . . . Propulsion 20 | 2 . 4 9 2 3 . Treads 5 | . . . . 2 3 . Leg 15 | 2 . 4 9 . . . Wheel . | . . . . . . . Hover . | . . . . . . . Flight . | . . . . . . . Utility 18 | 1 . . 8 3 2 4 Device 5 | . . . 3 1 . 1 Storage 6 | 1 . . 3 . 2 . Processor 1 | . . . 1 . . . Hackware . | . . . . . . . Protection 6 | . . . 1 2 . 3 Artifact . | . . . . . . . Weapon 28 | 3 . 5 11 1 3 5 Energy Gun 5 | . . 1 4 . . . Energy Cannon . | . . . . . . . Ballistic Gun 14 | 3 . 3 3 1 1 3 Ballistic Cannon . | . . . . . . . Launcher 7 | . . . 4 . 1 2 Special Weapon 1 | . . 1 . . . . Impact Weapon . | . . . . . . . Slashing Weapon 1 | . . . . . 1 . Piercing Weapon . | . . . . . . . Special Melee Weapon . | . . . . . . . Unidentified Prototypes 1 | . . . . 1 . . Parts Lost 15 | . . 4 9 . 2 . Power 1 | . . . 1 . . . Propulsion 4 | . . . 3 . 1 . Utility 1 | . . . 1 . . . Weapon 9 | . . 4 4 . 1 . Highest Loss Streak 4 | . . 2 4 . 2 . Average Slot Usage (%) 92 | . 85 84 96 99 93 88 Engine 10 | . 14 14 9 11 11 1 Treads 12 | . . . . 21 21 22 Leg 11 | . 28 28 21 . . . Device 1 | . . . 7 . . 6 Storage 25 | . 14 14 23 33 35 19 Processor 1 | . . . 7 . . . Protection 4 | . . . 3 11 3 7 Energy Gun 2 | . . 5 4 . . . Ballistic Gun 20 | . 28 22 10 22 21 21 Launcher 1 | . . . 6 . . . Naked Turns . | . . . . . . . Heaviest Build 110 | 10 9 10 49 50 110 109 Greatest Support 40 | 20 20 20 23 40 40 40 Greatest Overweight (x) 5 | 1 . . 2 2 5 2 Average Overweight (x) . | . . . . 1 1 2 Largest Inventory Capacity 32 | 6 6 6 18 18 32 32 Average Capacity 16 | 5 6 6 13 18 26 26 Most Carried 30 | 6 6 6 18 18 30 30 Average Carried 15 | 4 6 5 11 17 24 25 Final Capacity 32 | 6 6 6 18 18 32 24 Final Carried 28 | 6 6 6 18 18 28 24 Class Distribution -------------------- 58% | Mutant 22% | Hauler-Mutant 16% | Scavenger-Mutant Dominant Class ---------------- Mutant | -10/Materials Mutant | -10/Mines Mutant | -9/Materials Mutant | -9/Mines Hauler-Mutant | -9/Exiles Hauler-Mutant | -8/Mines Resources | -11 -10 -10 -9 -9 -9 -8 ----------- Run | Scr Mat Min Mat Min Exi Min Matter Collected 1730 | 238 . 218 515 418 40 301 Remotely . | . . . . . . . Salvage Created 1617 | . . 486 810 160 4 157 Parts 111 | . . 32 47 20 . 12 Haulers Intercepted . | . . . . . . . Recyclers Shooed 2 | . . . 2 . . . Parts Field Recycled . | . . . . . . . Retrieved Matter . | . . . . . . . Parts Self-Destructed . | . . . . . . . Prevented . | . . . . . . . Kills | -11 -10 -10 -9 -9 -9 -8 ------- Run | Scr Mat Min Mat Min Exi Min Combat Hostiles Destroyed 55 | . . 17 26 9 . 3 Guns 38 | . . 16 11 9 . 2 Cannons 1 | . . 1 . . . . AOE 16 | . . . 15 . . 1 Classes Destroyed 7 | . . 2 5 . . . Worker 1 | . . . 1 . . . Recycler 1 | . . . 1 . . . Watcher 1 | . . . 1 . . . Swarmer 21 | . . 6 7 8 . . Grunt 28 | . . 11 13 . . 4 Duelist 2 | . . . 1 1 . . Sentry 5 | . . . 5 . . . Best Kill Streak 5 | . . 5 5 4 . 1 Combat Bots Only 5 | . . 5 4 4 . 1 Max Kills in Single Turn 3 | . . 1 3 1 . 1 Gunslinging . | . . . . . . . Exploded 3 | . . . 3 . . 1 Melee . | . . . . . . . Uniques/NPCs Destroyed . | . . . . . . . Combat | -11 -10 -10 -9 -9 -9 -8 -------- Run | Scr Mat Min Mat Min Exi Min Damage Taken 3120 | . . 826 1372 408 318 196 Core 497 | . . 96 233 24 87 57 Absorbed by Shields . | . . . . . . . Core Remaining (%) 80 | 100 . 61 . . . . Volleys Fired 149 | . . 50 58 29 3 9 Largest 2 | . . 2 2 2 1 2 Hottest 140 | . . 140 80 46 33 46 Shots Fired 270 | . . 97 98 58 3 14 Gun 245 | . . 93 83 58 . 11 Cannon . | . . . . . . . Launcher 21 | . . . 15 . 3 3 Special 4 | . . 4 . . . . Kinetic 212 | . . 79 64 58 . 11 Thermal 37 | . . 18 19 . . . Explosive 21 | . . . 15 . 3 3 Electromagnetic . | . . . . . . . Robot Hit Streak 21 | . . 11 21 11 . 5 Robot Miss Streak 7 | . . 3 3 7 . 1 Penetration Max . | . . . . . . . Secondary Targets 2 | . . 1 . . . 1 Max Gunslinging Chain 1 | . . 1 . . . 1 Shots Hit Robots 187 | . . 69 75 35 . 8 Core Hits 108 | . . 32 47 12 7 10 Critical Hits 1 | . . 1 . . . . Critical Kills . | . . . . . . . Critical Parts Destroyed 1 | . . 1 . . . . Melee Attacks 1 | . . . . . 1 . Impact . | . . . . . . . Slashing 1 | . . . . . 1 . Piercing . | . . . . . . . Sneak Attacks . | . . . . . . . Combat Hostiles . | . . . . . . . Follow-up Attacks . | . . . . . . . Damage Inflicted 3851 | . . 708 2086 487 178 392 Guns 2029 | . . 611 819 487 . 112 Cannons . | . . . . . . . Explosions 1723 | . . . 1267 . 178 278 Melee . | . . . . . . . Ramming 3 | . . 1 . . . 2 Kinetic 1747 | . . 522 626 487 . 112 Thermal 378 | . . 185 193 . . . Explosive 1723 | . . . 1267 . 178 278 Electromagnetic . | . . . . . . . Impact . | . . . . . . . Slashing . | . . . . . . . Piercing . | . . . . . . . Highest Corruption 7 | . . . 2 2 7 7 Average Corruption 2 | . . . 2 2 2 7 Corruption Purged . | . . . . . . . Effects 65 | . . . 14 16 22 13 Message Errors 20 | . . . 6 6 4 4 Matter Fused 8 | . . . . . 4 4 Heat Flow Errors 10 | . . . . 5 3 2 Energy Discharges 7 | . . . . 3 3 1 Data Loss (minor) 10 | . . . 2 1 6 1 Data Loss (major) 1 | . . . . . 1 . Targeting Errors 8 | . . . 5 1 1 1 Weapon Failures 1 | . . . 1 . . . Overload Shots . | . . . . . . . Overflow Damage 64 | . . . 23 . 13 28 Projectiles . | . . . . . . . Explosions 64 | . . . 23 . 13 28 Melee . | . . . . . . . Knockbacks . | . . . . . . . Impact . | . . . . . . . Kinetic . | . . . . . . . Secondary . | . . . . . . . Self-Inflicted Damage 336 | . . . 260 . 33 43 Shots 9 | . . . 7 . 1 1 Rammed 2 | . . 1 . . . 1 Targets Rammed 2 | . . 1 . . . 1 Kicked . | . . . . . . . Crushed . | . . . . . . . Highest Temperature 269 | . . 150 120 253 134 269 Average Temperature 67 | . . 36 32 114 62 96 Received Heat Transfer 693 | . . 255 360 . . 78 Effects 1 | . . . . 1 . . Interference 1 | . . . . 1 . . Siege Activations . | . . . . . . . Robots Corrupted . | . . . . . . . Combat Hostiles . | . . . . . . . Parts Fried . | . . . . . . . Impact Corruptions . | . . . . . . . Robots Melted . | . . . . . . . Combat Hostiles . | . . . . . . . Parts Melted 1 | . . . 1 . . . Heat Transferred 850 | . . 400 450 . . . Parts Sabotaged . | . . . . . . . Parts Stolen . | . . . . . . . Parts Stripped . | . . . . . . . Power Chain Reactions . | . . . . . . . Missiles Intercepted . | . . . . . . . Alert | -11 -10 -10 -9 -9 -9 -8 ------- Run | Scr Mat Min Mat Min Exi Min Peak Influence 378 | . 30 205 378 180 . 170 Initial 147 | . . 11 35 147 . . Average 102 | . 6 56 202 91 . 100 Maximum Alert Level 1 | . . 1 1 . . . Low Security (%) 86 | 100 100 92 50 100 . 100 Level 1 13 | . . 7 49 . . . Level 2 . | . . . . . . . Level 3 . | . . . . . . . Level 4 . | . . . . . . . Level 5 . | . . . . . . . High Security . | . . . . . . . Max Security . | . . . . . . . Squads Dispatched 4 | . 1 . 3 . . . Investigation . | . . . . . . . Extermination . | . . . . . . . Reinforcement 4 | . 1 . 3 . . . Assault . | . . . . . . . Garrison . | . . . . . . . Intercept . | . . . . . . . Construction Impeded . | . . . . . . . Haulers Reinforced . | . . . . . . . Stealth | -11 -10 -10 -9 -9 -9 -8 --------- Run | Scr Mat Min Mat Min Exi Min Distress Signals 5 | . . . 5 . . . Communications Jammed . | . . . . . . . Distress Signals . | . . . . . . . Times Spotted 82 | . 5 17 39 11 . 10 Peak Tracking Total 6 | . 4 3 6 4 . 3 Tactical Retreats 3 | . . . 1 1 . 1 Traps | -11 -10 -10 -9 -9 -9 -8 ------- Run | Scr Mat Min Mat Min Exi Min Traps Triggered 1 | . . . 1 . . . Indirectly . | . . . . . . . Trap Hack Attempts . | . . . . . . . Triggered . | . . . . . . . Disarmed . | . . . . . . . Reprogrammed . | . . . . . . . Reused . | . . . . . . . Traps Extracted . | . . . . . . . Installed . | . . . . . . . Triggered . | . . . . . . . Machines | -11 -10 -10 -9 -9 -9 -8 ---------- Run | Scr Mat Min Mat Min Exi Min Machines Disabled 5 | . . . 4 . . 1 Max in Single Turn 1 | . . . 1 . . . Machines Sabotaged . | . . . . . . . Garrisons Compromised . | . . . . . . . Overloaded Fab Kills . | . . . . . . . Fab Network Shutdowns . | . . . . . . . Hacking | -11 -10 -10 -9 -9 -9 -8 --------- Run | Scr Mat Min Mat Min Exi Min Machines Accessed 7 | . 1 . 5 1 . . Terminals 6 | . 1 . 5 . . . Fabricators . | . . . . . . . Repair Stations . | . . . . . . . Recycling Units . | . . . . . . . Scanalyzers . | . . . . . . . Garrison Access . | . . . . . . . Total Hacks 11 | . 2 . 8 1 . . Successful 5 | . . . 4 1 . . Failed 6 | . 2 . 4 . . . Catastrophic 2 | . 1 . 1 . . . Database Lockouts . | . . . . . . . Manual 7 | . 2 . 5 . . . Terminals 10 | . 2 . 8 . . . Fabricators . | . . . . . . . Repair Stations . | . . . . . . . Recycling Units . | . . . . . . . Scanalyzers . | . . . . . . . Garrison Access . | . . . . . . . Terminal Hacks 3 | . . . 2 1 . . Open Door 1 | . . . . 1 . . Unreport Threat 1 | . . . 1 . . . Zone Layout 1 | . . . 1 . . . Fabricator Hacks . | . . . . . . . Repair Station Hacks . | . . . . . . . Recycling Unit Hacks . | . . . . . . . Scanalyzer . | . . . . . . . Garrison Access Hacks . | . . . . . . . Unauthorized Hacks 2 | . . . 2 . . . Terminals 2 | . . . 2 . . . Track 2 | . . . 2 . . . Fabricators . | . . . . . . . Repair Stations . | . . . . . . . Recycling Units . | . . . . . . . Scanalyzers . | . . . . . . . Garrison Access . | . . . . . . . Data Cores Recovered . | . . . . . . . Used . | . . . . . . . Hacking Detections 6 | . 1 . 5 . . . Full Trace Events 1 | . 1 . . . . . Feedback Events . | . . . . . . . Feedback Blocked . | . . . . . . . Robot Schematics Acquired . | . . . . . . . Robots Built . | . . . . . . . Matter . | . . . . . . . Time . | . . . . . . . Total Robot Build Rating . | . . . . . . . Part Schematics Acquired . | . . . . . . . Parts Built . | . . . . . . . Matter . | . . . . . . . Time . | . . . . . . . Total Part Build Rating . | . . . . . . . Parts Repaired . | . . . . . . . Time . | . . . . . . . Parts Recycled . | . . . . . . . Recycled Matter . | . . . . . . . Retrieved Matter . | . . . . . . . Retrieved Components . | . . . . . . . Parts Scanalyzed . | . . . . . . . Part Schematics Acquired . | . . . . . . . Parts Damaged . | . . . . . . . Bothacking | -11 -10 -10 -9 -9 -9 -8 ------------ Run | Scr Mat Min Mat Min Exi Min Used RIF Installer . | . . . . . . . Robots Hacked . | . . . . . . . Non-combat . | . . . . . . . Combat . | . . . . . . . Robot Hacks Applied . | . . . . . . . Relay Couplers Released . | . . . . . . . Robots Rewired 6 | . . . . . 6 . Allies Hacked . | . . . . . . . Hacks Repelled . | . . . . . . . Allies | -11 -10 -10 -9 -9 -9 -8 -------- Run | Scr Mat Min Mat Min Exi Min Total Allies 9 | . . 1 . 2 6 . Largest Group 6 | . . 1 1 2 6 6 Highest-Rated Group 74 | . . 31 31 45 74 74 Highest-Rated Ally 31 | . . 31 31 31 31 21 Total Orders 2 | . . . . . 2 . STAY 1 | . . . . . 1 . FOLLOW 1 | . . . . . 1 . Ally Attacks 36 | . . . 2 . . 34 Total Damage 658 | . . . 42 . . 616 Kills 3 | . . . . . . 3 Allies Corrupted . | . . . . . . . Allies Melted . | . . . . . . . Intel | -11 -10 -10 -9 -9 -9 -8 ------- Run | Scr Mat Min Mat Min Exi Min Robot Analysis Total . | . . . . . . . Derelict Logs Recovered 4 | . . 1 . 3 . . Drone Launches . | . . . . . . . Drone Recoveries . | . . . . . . . Exploration | -11 -10 -10 -9 -9 -9 -8 ------------- Run | Scr Mat Min Mat Min Exi Min Turns Passed 5944 | 79 143 1422 1030 1443 1344 483 Spaces Moved 2709 | 56 110 559 487 692 632 173 Core 13 | 13 . . . . . . Treads 1490 | . . . . 685 632 173 Legs 1206 | 43 110 559 487 7 . . Wheels . | . . . . . . . Hover . | . . . . . . . Flight . | . . . . . . . Fastest Speed 50 | 50 120 120 120 180 160 200 Average Speed 161 | 107 120 120 148 180 189 200 Slowest Speed 260 | 120 120 120 180 180 260 200 Overloaded Moves . | . . . . . . . Propulsion Burnouts . | . . . . . . . Robots Hopped . | . . . . . . . Cave-ins Triggered 1 | . . . . . 1 . Exploration Rate (%) 57 | 4 33 98 59 99 91 21 Regions Visited 6 Branch Regions 4 Pre-discovered Areas 2 | . . 1 . 1 . . Known Exits Taken . | . . . . . . . Unknown Exits Taken 6 | 1 1 1 1 1 1 . Scrap Searched 6 | . . 2 . 4 . . Spaces Dug 1 | . . . . . 1 . Terrain Destroyed 183 | . . . 123 . 21 39 Melee 1 | . . . . . 1 . Projectile . | . . . . . . . AOE 182 | . . . 123 . 20 39 Terrain Rammed . | . . . . . . . Walls Destroyed . | . . . . . . . Machines Disabled . | . . . . . . . Actions | -11 -10 -10 -9 -9 -9 -8 --------- Run | Scr Mat Min Mat Min Exi Min Total 4013 | 71 121 1219 697 836 774 295 Wait 875 | 3 12 588 83 93 5 91 Move 2702 | 55 109 558 486 691 630 173 Hop . | . . . . . . . Pick Up 74 | 6 . 6 26 6 26 4 Fast Attach 15 | 6 . . 7 . 1 1 Attach 19 | . . 5 8 2 2 2 Detach . | . . . . . . . Swap 39 | 1 . 5 16 5 5 7 Drop 42 | . . 6 13 10 6 7 Fire 149 | . . 50 58 29 3 9 Melee 1 | . . . . . 1 . Ram . | . . . . . . . Kick 1 | . . 1 . . . . Crush 1 | . . . . . . 1 Escape Stasis 1 | . . . . . 1 . Rewire 94 | . . . . . 94 . Trap . | . . . . . . . Miscellaneous . | . . . . . . . Route ------- -11/Scrapyard -10/Materials -10/Mines (discovered 2 exits: *Mat x2) -9/Materials (discovered 2 exits: *Mat / *Min) -9/Mines (discovered 3 exits: *Mat x2 / *Exi) -9/Exiles (discovered 2 exits: [*Min x2]) -8/Mines History --------- Turn | Location | Event 4 | -11/Scrapyard | Discovered new exit (range 16) 80 | -11/Scrapyard | Entered Materials 136 | -10/Materials | Discovered new exit (range 16) 223 | -10/Materials | Entered Mines 309 | -10/Mines | Build established: Mutant 325 | -10/Mines | Excavation squad dispatched 325 | -10/Mines | A large section of the Mines collapsed 575 | -10/Mines | Excavation squad dispatched 825 | -10/Mines | Excavation squad dispatched 1049 | -10/Mines | Discovered new exit (range 13) 1386 | -10/Mines | Learned location of Storage (-7) 1555 | -10/Mines | Build established: Scavenger-Mutant 1621 | -10/Mines | Discovered new exit (range 14) 1635 | -10/Mines | Received a Mining Laser from a helpful Derelict 1645 | -10/Mines | Entered Materials 1645 | -9/Materials | Accompanied by 1 ally 1645 | -9/Materials | Evolved 2 slots: Utility x2 1856 | -9/Materials | Discovered new exit (range 8) 1869 | -9/Materials | Identified exit to Materials 2028 | -9/Materials | Lost 3 parts (1p2w) 2086 | -9/Materials | Build established: Mutant 2156 | -9/Materials | Lost 4 parts (2n1u1w) 2485 | -9/Materials | Core integrity fell below 50% 2653 | -9/Materials | Discovered new exit (range 12) 2675 | -9/Materials | Entered Mines 2680 | -9/Mines | Found the Drone Emporium 2691 | -9/Mines | Found Prototype Device 2911 | -9/Mines | Found a damaged Exp. Sensor Array with a note attached 2914 | -9/Mines | Found Prototype Device 2915 | -9/Mines | Identified Exp. Sensor Array 2976 | -9/Mines | Learned Materials trap positions 3213 | -9/Mines | Joined a pair of Derelicts in attacking an 0b10 outpost 3612 | -9/Mines | Discovered exit to Materials (range 9) 3718 | -9/Mines | Learned 4 Materials zone layouts 3720 | -9/Mines | Discovered exit to Materials (range 6) 4088 | -9/Mines | Deemed a non-threat by the Exiles lab entrance 4090 | -9/Mines | Discovered new exit (range 5) 4118 | -9/Mines | Entered Exiles 4118 | -9/Exiles | Found Exiles lab destroyed 4118 | -9/Exiles | Accompanied by 2 allies 4145 | -9/Exiles | Discovered new exit (range 15) 4148 | -9/Exiles | Led the pair of lost Derelicts to a safe place 4934 | -9/Exiles | Discovered new exit (range 14) 5095 | -9/Exiles | Build established: Hauler-Mutant 5248 | -9/Exiles | Crushed by falling debris 5249 | -9/Exiles | Core integrity fell below 20% 5462 | -9/Exiles | Entered Mines 5462 | -8/Mines | Accompanied by 6 allies 5945 | -8/Mines | Destroyed by G-47 Trooper with Particle Gun Last Messages --------------- 05685_ Dropped Med. Storage Unit. 05685_ Dropped Imp. Ion Engine. 05686_ Dropped Med. Storage Unit. 05689_ System corrupted: Heat flow error (+178). 05693_ Acquired 39 matter. 05731_ System corrupted: Matter fused (-8). 05752_ QD7MTU1X1DRAYP9U4E1MJ6PSD#VT4AEAEZ:JY 05758_ T-07 Excavator is excavating. 05833_ System corrupted: Matter fused (-10). 05852_ Acquired 6 matter. 05858_ Acquired 4 matter. 05868_ Acquired Mak. Sword. 05875_ VPPVOFGLAR O|DRFQJZCTN=WV:O 05892_ A74N6UD3MZ,K#A74ZOJ,> 05909_ Acquired 8 matter. 05911_ System corrupted: Component data lost. 05929_ Acquired 10 matter. 05937_ WU4PQN=>1BID,KZ%FF|NUFAGXHTSWCDNUZFBBU5G 05942_ Commando 2b destroyed. 05944_ Destroyed Hvy. Laser. Map ----- +----------------------------------------------------+ | ???????????????????????????????????????????? | | ???????????????????????????????????????????? | | ???????????????????????????????????????????? | | ???????????????????????????????????????????? | | ???????????????????????????????????????????? | | ???????????????????????????????????????????? | | ???????????????????????????????????????????? | | ???????????????????????????????????????????? | | ???????????????????????????????????????????? | | ???????????????????????????????????????????? | | ??????????????????????????????#????????????? | | ?????????????????????????????? ???????????? | | ?????????????????????????????? #???????????? | | ?????????????????????????????? #????##?????? | | ?????????????????????????????# #???? ?????? | | ????????????????????????????## ##??? ??????? | | ???????????????????????????## = ##? ?????? | | ???????????????????????????# % #? """????? | | ???????????????????????????# % #? """ ??? | | ???????????????????????????? *# #? """ ??? | | ????????????????????????????# ##? ???? | | ??????????????????????????#### ### """ ??? | | ?????????????????????????### # # """ ???? | | ?????????????????????????## "" #? | | ????????????????????????## % g ??? | | ????????????????????????#@%%= g #????????? | | ??????????????????####### %# /g #???????? | | ??????????????????#![*! =## * #???????? | | ??????????????????#*##### ### #????????? | | ??????????????????#!#???# #?## ##????????? | | ??????????????????#[#???# #??####?????????? | | ???????????????#### #???#++####????????????? | | #????#####?????# =*#???# ##???????????? | | ###### ##????#=####???# #???????????? | | ####?#=#??????# ????????? | | ###[#??????# ?????? | | ## ## #??????######### #????? | | ## #????????????????## ##????? | | ## ## #####?????????????????????????? | | ### ########?????????????????????????????? | | #?####????????????????????????????????????? | | #?????????????????????????????????????????? | | ##?????????????????????????????????????????? | | ???????????????????????????????????????????? | | ???????????????????????????????????????????? | | ???????????????????????????????????????????? | | | | | | | | | +----------------------------------------------------+ Best States ------------- Heat Dissipation 60 Energy Generation 14 Energy Capacity 265 Matter Stores 300 Matter Capacity 300 Sight Range 16 Robot Scan Range 30 Terrain Scan Density 10 Armor Coverage 150 Core Shielding 20 Evasion (%) 50 Recoil Reduction 2 Item Schematics ----------------- None Robot Schematics ------------------ None Fabricated ------------ Nothing Alien Tech Used ----------------- None Achievements -------------- None Challenges ------------ None Game ------ Seed MiniBottomlessFlakker Manual? 0 Play Time 00:29:22 Cumulative 113.9 hours Start 2021.01.05 @ 07:45:25 End 2021.01.05 @ 08:11:33 Sessions 1 Manual Loads 0 Difficulty Rogue Special Mode None Game No. 29 Rogue 29 Adventurer 0 Explorer 0 Win Type - Total 9 Types 5/1/1/1/1/0/0/0/0 Lore% 44 Gallery% 68 Achievement% 55 Wizard Run 0 Options --------- ASCII 0 Keyboard 0 Movement Numpad Keybinds 0 Fullscreen 1 Font 18/TerminusBold Map View 76x50 Tactical HUD 1 Map Filters NONE Filters NONE Steam 1 RUN: 84f813c8-3aaa-4da2-9ea3-f58496b3a5e7